Cogmind - Beta 13 @@@ ROGUE MODE // 2024.02.27 @ 18:16:09 Player: Benkyo Result: Destroyed by X6-0O0(R) with Subdweller Machine Gun Performance ------------- Evolutions (0) 0 Regions Visited (3) 600 Robots Destroyed (32) 160 Value Destroyed (720) 720 Prototype IDs (4) 80 Alien Tech Used (0) 0 Bonus (85) 85 TOTAL SCORE: 1645 Bonus ------- Follower Combat Kills 85 Cogmind --------- Core Integrity 0/250 Matter 222/300 Energy 123/250 System Corruption 0% Temperature Cool (0) Movement Treading (320) Ox2 Location -10/Subcaves Parts ------- > --- POWER (1) -------- Ion Engine > --- PROPULSION (2) --- Light Treads Subdweller Monowheel > --- UTILITY (2) ------ High-capacity Storage Unit > --- WEAPON (2) ------- Ion Cannon Subdweller Machine Gun > --- INVENTORY (20) --- Light Treads Light Treads Light Treads Light Treads Improved Heat Sink High-capacity Matter Pod (200) Improved Terrain Scanner Scrap Shield Hardlight Generator EM Pulse Cannon Light Assault Rifle Light Assault Rifle Light Assault Rifle Scrap Shield Fragment (45) Peak State ------------ > --- POWER ------------ Improved Ion Engine > --- PROPULSION ------- Light Treads Subdweller Monowheel > --- UTILITY ---------- High-capacity Storage Unit Subdweller Optics > --- WEAPON ----------- Subdweller Machine Gun Light Cannon > --- INVENTORY -------- Ion Engine Light Treads Light Treads Light Treads Light Treads Light Treads Light Treads Improved Heat Sink High-capacity Matter Pod Improved Terrain Scanner Light Armor Plating Light Armor Plating Scrap Shield Hardlight Generator EM Pulse Cannon Ion Cannon Light Assault Rifle Light Assault Rifle Light Assault Rifle [Rating: 14] Favorites ----------- Power Ion Engine Engine Ion Engine Propulsion Light Treads Treads Light Treads Wheel Subdweller Monowheel Utility High-capacity Storage Unit Device Improved Terrain Scanner Storage High-capacity Storage Unit Processor Signal Interpreter Protection Light Armor Plating Weapon Light Assault Rifle Energy Gun Small Laser Energy Cannon Ion Cannon Ballistic Gun Light Assault Rifle Ballistic Cannon Light Cannon Special Melee Weapon Datajack Build | -11 -10 -10 -10 ------- Run | Yrd Mat Min Sub Slots Evolved . | . . . . Power . | . . . . Propulsion . | . . . . Utility . | . . . . Weapon . | . . . . Parts Attached 35 | 8 6 9 12 Power 6 | 1 . 2 3 Engine 6 | 1 . 2 3 Core . | . . . . Reactor . | . . . . Propulsion 8 | 2 2 1 3 Treads 7 | 2 2 1 2 Leg . | . . . . Wheel 1 | . . . 1 Hover . | . . . . Flight . | . . . . Utility 11 | 2 2 4 3 Device 3 | 1 . 1 1 Storage 2 | 1 1 . . Processor 1 | . . 1 . Hackware . | . . . . Protection 5 | . 1 2 2 Artifact . | . . . . Weapon 10 | 3 2 2 3 Energy Gun 1 | 1 . . . Energy Cannon 1 | . . . 1 Ballistic Gun 6 | 2 1 1 2 Ballistic Cannon 1 | . . 1 . Launcher . | . . . . Special Weapon . | . . . . Impact Weapon . | . . . . Slashing Weapon . | . . . . Piercing Weapon . | . . . . Special Melee Weapon 1 | . 1 . . Unidentified Prototypes . | . . . . Parts Lost 9 | . . 3 6 Power 2 | . . 1 1 Propulsion 1 | . . . 1 Utility 3 | . . 1 2 Weapon 3 | . . 1 2 Highest Loss Streak 4 | . . 2 4 To Critical Strikes . | . . . . Average Slot Usage (%) 99 | . 100 99 98 Engine 13 | . 14 13 14 Treads 26 | . 28 28 16 Wheel 1 | . . . 11 Device 5 | . 7 4 . Storage 14 | . 14 14 14 Protection 8 | . 6 9 12 Ballistic Gun 23 | . 27 21 15 Ballistic Cannon 4 | . . 6 11 Naked Turns . | . . . . Heaviest Build 58 | 14 51 54 58 Greatest Support 40 | 40 40 40 40 Greatest Overweight (x) 2 | . 1 1 2 Average Overweight (x) 1 | . . 1 1 Largest Inventory Capacity 20 | 8 20 20 20 Average Capacity 19 | 6 19 20 20 Most Carried 20 | 6 20 20 20 Average Carried 16 | 4 12 19 19 Final Capacity 20 | 8 20 20 20 Final Carried 20 | 5 20 19 15 Class Distribution -------------------- 76% | Mutant 16% | Scavenger-Mutant 7% | Subdweller-Mutant Dominant Class ---------------- Mutant | -10/Materials Mutant | -10/Mines Subdweller-Mutant | -10/Subcaves Resources | -11 -10 -10 -10 ----------- Run | Yrd Mat Min Sub Matter Collected 1095 | 294 502 197 102 Remotely . | . . . . Salvage Created 973 | 126 550 233 64 Parts 64 | 5 37 19 3 Haulers Intercepted . | . . . . Recyclers Shooed . | . . . . Parts Field Recycled . | . . . . Retrieved Matter . | . . . . Parts Self-Destructed 5 | . . . 5 Prevented . | . . . . Kills | -11 -10 -10 -10 ------- Run | Yrd Mat Min Sub Combat Hostiles Destroyed 26 | . 16 8 2 Guns 22 | . 16 5 1 Cannons 4 | . . 3 1 Classes Destroyed 8 | 2 4 1 1 Tunneler 1 | 1 . . . Recycler 2 | 1 1 . . Mechanic 1 | . 1 . . Watcher 2 | . 2 . . Swarmer 12 | . 9 3 . Grunt 10 | . 7 3 . Sentry 2 | . . 2 . Subdweller 2 | . . . 2 Best Kill Streak 4 | 2 4 3 2 Combat Bots Only 3 | . 3 3 2 Max Kills in Single Turn 1 | 1 1 1 1 Gunslinging . | . . . . Exploded . | . . . . Melee . | . . . . Uniques/NPCs Destroyed . | . . . . Combat | -11 -10 -10 -10 -------- Run | Yrd Mat Min Sub Hostile Shots Fired 185 | . 76 56 53 Missed 44 | . 17 11 16 Damage Taken 1865 | . 543 565 757 Core 250 | . 71 74 105 Absorbed by Shields . | . . . . Core Remaining (%) 100 | 100 . . . Volleys Fired 119 | 5 68 25 21 Largest 2 | 2 2 2 2 Hottest 90 | 40 40 55 90 Shots Fired 238 | 10 136 50 42 Gun 206 | 10 136 36 24 Cannon 32 | . . 14 18 Launcher . | . . . . Special . | . . . . Kinetic 230 | 10 136 50 34 Thermal 8 | . . . 8 Explosive . | . . . . Electromagnetic . | . . . . Robot Hit Streak 26 | 3 13 26 20 Robot Miss Streak 4 | 3 4 1 1 Penetration Max . | . . . . Secondary Targets 3 | . 3 . . Max Gunslinging Chain 1 | . 1 . . Shots Hit Robots 168 | 6 83 45 34 Core Hits 63 | 3 34 20 6 Critical Kills . | . . . . Critical Parts Destroyed . | . . . . Critical Strikes 1 | . . 1 . Blast 1 | . . 1 . Melee Attacks . | . . . . Impact . | . . . . Slashing . | . . . . Piercing . | . . . . Sneak Attacks . | . . . . Combat Hostiles . | . . . . Follow-up Attacks . | . . . . Damage Inflicted 1914 | 66 862 484 502 Guns 1476 | 66 862 274 274 Cannons 438 | . . 210 228 Explosions . | . . . . Melee . | . . . . Ramming . | . . . . Kinetic 1752 | 66 862 484 340 Thermal 162 | . . . 162 Explosive . | . . . . Electromagnetic . | . . . . Impact . | . . . . Slashing . | . . . . Piercing . | . . . . Highest Corruption . | . . . . Average Corruption . | . . . . Corruption Purged . | . . . . Corruption Blocked . | . . . . Overload Shots . | . . . . Overflow Damage . | . . . . Projectiles . | . . . . Explosions . | . . . . Melee . | . . . . Knockbacks 4 | . . 1 3 Impact . | . . . . Kinetic 3 | . . 1 2 Secondary 1 | . . . 1 Self-Inflicted Damage . | . . . . Shots . | . . . . Rammed . | . . . . Targets Rammed . | . . . . Kicked . | . . . . Crushed . | . . . . Highest Temperature 92 | . 19 92 . Average Temperature 20 | . 6 35 . Received Heat Transfer 444 | . 156 171 117 Siege Activations . | . . . . Robots Corrupted . | . . . . Combat Hostiles . | . . . . Parts Fried . | . . . . Impact Corruptions . | . . . . Robots Melted . | . . . . Combat Hostiles . | . . . . Parts Melted 1 | . . . 1 Heat Transferred 259 | . . . 259 Parts Sabotaged . | . . . . Parts Stolen . | . . . . Parts Stripped . | . . . . Power Chain Reactions . | . . . . Alert | -11 -10 -10 -10 ------- Run | Yrd Mat Min Sub Peak Influence 223 | 10 223 116 . Initial 12 | . 6 12 . Average 64 | 4 107 35 . Maximum Alert Level 1 | . 1 . . Low Security (%) 95 | 100 89 100 . Level 1 4 | . 10 . . Level 2 . | . . . . Level 3 . | . . . . Level 4 . | . . . . Level 5 . | . . . . High Security . | . . . . Max Security . | . . . . Squads Dispatched 4 | . 3 1 . Investigation 3 | . 2 1 . Extermination . | . . . . Reinforcement 1 | . 1 . . Assault . | . . . . Garrison . | . . . . Intercept . | . . . . Searches Triggered . | . . . . Construction Impeded . | . . . . Haulers Reinforced . | . . . . Active Scanning Responses . | . . . . Cargo Convoy Interrupts . | . . . . Stealth | -11 -10 -10 -10 --------- Run | Yrd Mat Min Sub Distress Signals 1 | . 1 . . Communications Jammed . | . . . . Distress Signals . | . . . . Times Spotted 44 | . 23 11 10 Peak Tracking Total 7 | . 3 3 7 Tactical Retreats . | . . . . Traps | -11 -10 -10 -10 ------- Run | Yrd Mat Min Sub Traps Triggered . | . . . . Indirectly . | . . . . Trap Hack Attempts 2 | . 2 . . Triggered . | . . . . Disarmed 1 | . 1 . . Reprogrammed . | . . . . Reused . | . . . . Traps Extracted . | . . . . Installed . | . . . . Triggered . | . . . . Machines | -11 -10 -10 -10 ---------- Run | Yrd Mat Min Sub Machines Disabled . | . . . . Max in Single Turn . | . . . . Machines Repaired . | . . . . Machines Dismantled . | . . . . Machines Sabotaged . | . . . . Overloaded Fab Kills . | . . . . Hacking | -11 -10 -10 -10 --------- Run | Yrd Mat Min Sub Machines Accessed 13 | . 10 2 1 Terminals 8 | . 7 1 . Fabricators . | . . . . Repair Stations 1 | . 1 . . Recycling Units 2 | . 2 . . Scanalyzers . | . . . . Garrison Access . | . . . . Total Hacks 36 | . 26 6 4 Successful 21 | . 13 4 4 Failed 15 | . 13 2 . Catastrophic 2 | . 2 . . Database Lockouts . | . . . . Manual 21 | . 16 5 . Terminals 23 | . 18 5 . Fabricators . | . . . . Repair Stations 2 | . 2 . . Recycling Units 6 | . 6 . . Scanalyzers . | . . . . Garrison Access . | . . . . Terminal Hacks 17 | . 9 4 4 Record 4 | . . . 4 Part Schematic 2 | . 1 1 . Robot Analysis 6 | . 4 2 . Prototype ID Bank 2 | . 2 . . Open Door 1 | . . 1 . Locate Traps 1 | . 1 . . Hauler Manifests 1 | . 1 . . Fabricator Hacks . | . . . . Repair Station Hacks 1 | . 1 . . Scan Component 1 | . 1 . . Recycling Unit Hacks . | . . . . Scanalyzer . | . . . . Garrison Access Hacks . | . . . . Unauthorized Hacks 3 | . 3 . . Terminals 1 | . 1 . . Botnet 1 | . 1 . . Fabricators . | . . . . Repair Stations . | . . . . Recycling Units 2 | . 2 . . Tunnel 2 | . 2 . . Scanalyzers . | . . . . Garrison Access . | . . . . Data Cores Recovered . | . . . . Used . | . . . . Hacking Detections 11 | . 10 1 . Full Trace Events . | . . . . Feedback Events . | . . . . Feedback Blocked . | . . . . Robot Schematics Acquired . | . . . . Robots Built . | . . . . Authchips . | . . . . Time . | . . . . Total Robot Build Rating . | . . . . Part Schematics Acquired 2 | . 1 1 . Parts Built . | . . . . Authchips . | . . . . Time . | . . . . Total Part Build Rating . | . . . . Parts Repaired . | . . . . Time . | . . . . Parts Recycled . | . . . . Recycled Matter . | . . . . Retrieved Matter . | . . . . Retrieved Components . | . . . . Parts Scanalyzed . | . . . . Part Schematics Acquired . | . . . . Parts Damaged . | . . . . Bothacking | -11 -10 -10 -10 ------------ Run | Yrd Mat Min Sub Used RIF Installer . | . . . . Robots Hacked . | . . . . Non-combat . | . . . . Combat . | . . . . Robot Hacks Applied . | . . . . Relay Couplers Released . | . . . . Fabnet Peak Effective % . | . . . . Robots Rewired . | . . . . Allies Hacked . | . . . . Hacks Repelled . | . . . . Allies | -11 -10 -10 -10 -------- Run | Yrd Mat Min Sub Total Allies 3 | . . 3 . Largest Group 3 | . . 3 . Highest-Rated Group 40 | . . 40 . Highest-Rated Ally 16 | . . 16 . Total Orders . | . . . . Ally Attacks 21 | . . 21 . Total Damage 271 | . . 271 . Kills 3 | . . 3 . Allies Corrupted . | . . . . Allies Melted . | . . . . Intel | -11 -10 -10 -10 ------- Run | Yrd Mat Min Sub Robot Analysis Total 6 | . 4 2 . Derelict Logs Recovered 1 | . . 1 . Drone Launches . | . . . . Drone Recoveries . | . . . . Exploration | -11 -10 -10 -10 ------------- Run | Yrd Mat Min Sub Turns Passed 4294 | 97 1619 2201 377 Spaces Moved 1700 | 52 577 857 214 Core 19 | 19 . . . Treads 1479 | 33 577 857 12 Legs . | . . . . Wheels 202 | . . . 202 Hover . | . . . . Flight . | . . . . Fastest Speed 50 | 50 160 240 130 Average Speed 221 | 119 235 240 136 Slowest Speed 240 | 160 240 240 240 Overloaded Moves . | . . . . Propulsion Burnouts . | . . . . Robots Hopped . | . . . . Cave-ins Triggered . | . . . . Exploration Rate (%) 54 | 5 97 100 14 Regions Visited 3 Branch Regions 2 Pre-discovered Areas 3 | . 2 . 1 Known Exits Taken 1 | . . 1 . Unknown Exits Taken 2 | 1 1 . . Scrap Searched 2 | . . 1 1 Spaces Dug . | . . . . Terrain Destroyed . | . . . . Melee . | . . . . Projectile . | . . . . AOE . | . . . . Terrain Rammed . | . . . . Walls Destroyed . | . . . . Machines Disabled . | . . . . Actions | -11 -10 -10 -10 --------- Run | Yrd Mat Min Sub Total 2011 | 75 716 958 262 Wait 102 | 2 42 58 . Move 1697 | 51 576 856 214 Hop . | . . . . Pick Up 36 | 7 17 5 7 Fast Attach 9 | 7 . 1 1 Attach 8 | 1 . 2 5 Detach . | . . . . Swap 18 | . 6 6 6 Drop 20 | 2 5 5 8 Fire 119 | 5 68 25 21 Melee . | . . . . Ram . | . . . . Kick . | . . . . Crush . | . . . . Escape Stasis . | . . . . Rewire . | . . . . Trap 2 | . 2 . . Miscellaneous . | . . . . Route ------- -11/Scrapyard -10/Materials (discovered 5 exits: *Mat x3 / *Min x2) -10/Mines (discovered 3 exits: *Mat x2 / *Sub) -10/Subcaves (discovered 3 exits: *Mat x2 / Rec) History --------- Turn | Location | Event 15 | -11/Scrapyard | Discovered new exit (range 16) 98 | -11/Scrapyard | Entered Materials 255 | -10/Materials | Discovered new exit (range 6) 301 | -10/Materials | Discovered new exit (range 16) 312 | -10/Materials | Build established: Mutant 394 | -10/Materials | Discovered new exit (range 10) 804 | -10/Materials | Discovered new exit (range 3) 1025 | -10/Materials | Discovered new exit (range 15) 1717 | -10/Materials | Entered Mines 1805 | -10/Mines | Met a Derelict shopkeep closing up shop 2060 | -10/Mines | Discovered new exit (range 4) 2167 | -10/Mines | Assisted by bots powering up and referring to "LRC-V3" 2567 | -10/Mines | Learned Materials trap positions 2683 | -10/Mines | Discovered new exit (range 9) 3153 | -10/Mines | Core integrity fell below 50% 3528 | -10/Mines | Build established: Scavenger-Mutant 3711 | -10/Mines | Discovered new exit (range 6) 3861 | -10/Mines | Identified exit to Materials 3914 | -10/Mines | Identified exit to Subcaves 3918 | -10/Mines | Entered Subcaves 3930 | -10/Subcaves | Ambushed by Subdwellers from Twisted Machinery 4002 | -10/Subcaves | Discovered new exit (range 5) 4010 | -10/Subcaves | Visited Clippyterm 4014 | -10/Subcaves | Identified exit to Materials 4014 | -10/Subcaves | Identified exit to Recycling 4014 | -10/Subcaves | Learned location of Section 7 (-2) 4040 | -10/Subcaves | A swath of the cavern ceiling suddenly collapsed 4221 | -10/Subcaves | Ambushed by swarm of Subdwellers 4262 | -10/Subcaves | Disturbed a concealed Subdweller 4268 | -10/Subcaves | Build established: Subdweller-Mutant 4292 | -10/Subcaves | Core integrity fell below 20% 4295 | -10/Subcaves | Destroyed by X6-0O0(R) with Subdweller Machine Gun Last Messages --------------- 04224_ RZ-2LZ(R) knocked back. 04225_ V6-G6H(R) emerges from the Twisted Machinery. 04226_ 3F-M7S(R) emerges from the Twisted Machinery. 04226_ X6-0O0(R) emerges from the Twisted Machinery. 04226_ Lgt. Armor Plating destroyed. 04227_ EX-X7M(g): "Sorry we're late! Had another grouchy Sub to deal with. Who's the new fellow?" 04227_ Lgt. Cannon destroyed. 04234_ P1-8AN(g) destroyed. 04262_ F5-7E2(R) angrily emerges from the Twisted Machinery. 04263_ F5-7E2(R): "SUBSUUUUUB!" 04263_ Critical hit (Destroy). 04265_ Lgt. Armor Plating destroyed. 04267_ F5-7E2(R) affixes Scrap Shield Fragment to Scrap Shield. 04270_ Sub. Machine Gun destroyed. 04270_ Imp. Ion Engine destroyed. 04273_ F5-7E2(R) destroyed. 04282_ Lgt. Treads destroyed. 04286_ Disposable Heat Sink melted. 04286_ O5-8LZ(R) destroyed. Map ----- +----------------------------------------------------+ | ?????????????????????# #????????????# ##???? | | ?????????????????????## ##???????????## ##????? | | ??????????????????????# #???????##### ##?????? | | ??????????????????##### #??###### ## ##??????? | | ?????????????????## ##??# # ##???????? | | ?????????????????# ##### #????????? | | ?????????????????# ## # # #????????? | | ?????????????????## ## # #### #######??? | | ??????????????????# ###?##!! #??? | | ??????????????????# ## #??#%= #??? | | ?????????????????## ## #?##*= ####??? | | ?????????????????# ### #### ##????? | | ?????????????????# ##?## ######?# ####?? | | ?????????????????####???######??????## #?? | | ?????????????????????????????????????# = ##?? | | ?????????????????????????????????????## !%!##?? | | ??????????????????????????????????????## [ "#?? | | ???????????????????????????????????????# &% ""#?? | | ???????????????????????????????????????# ] ""#?? | | ??????????????????????????????????????## ##??? | | ??????????????????????????????????????# # ##??? | | ?????????????????????????????????????### #" #??? | | ????????????????????????????????????## #??? | | ??????????????????????#####????????## ##??? | | ?????????????????????## #$##???????# ### ##???? | | ?????????????????????#$![@$#???????# ######????? | | ?????????????????????###%%##??###??## #????????? | | ?????????????>????????# =###?## #### #????????? | | ?????????????????????###R# ### ## ##???????? | | ??????????????# # < " #???????? | | ?????????????????# #???? | | ?????????????????## ##???? | | ??????????????????#### #????? | | ?????????????????????# ## ??? | | ?????????????????????##?## ### ?? | | ?????????????????????????## ### ##??# ## ? | | ??????????????????????????####?# #????# #?? ? | | ??????????????????????????????? #????? #???? | | ??????????????????????????????? #????? #???? | | ??????????????????????????????## ##????? ???? | | ???????????????????????????????###??????? ???? | | ??????????????????????????????????????????? ?????? | | ?????????????????????????????????????????????????? | | ?????????????????????????????????????????????????? | | ?????????????????????????????????????????????????? | | ?????????????????????????????????????????????????? | | ?????????????????????????????????????????????????? | | ?????????????????????????????????????????????????? | | ?????????????????????????????????????????????????? | | ?????????????????????????????????????????????????? | +----------------------------------------------------+ Best States ------------- Heat Dissipation 25 Energy Generation 15 Energy Capacity 265 Matter Stores 300 Matter Capacity 300 Sight Range 21 Terrain Scan Range 16 Terrain Scan Density 10 Armor Coverage 150 Evasion (%) 50 Recoil Reduction 2 Item Schematics ----------------- Huge Storage Unit | -10/Materials | Hacked Hcp. Storage Unit | -10/Mines | Hacked Robot Schematics ------------------ None Fabricated ------------ Nothing Alien Tech Used ----------------- None Achievements -------------- None Challenges ------------ None Game ------ Seed DrainedFusionArachnoskeleton Manual? 0 Play Time 00:35:47 Cumulative 513.4 hours Start 2024.02.27 @ 12:39:02 End 2024.02.27 @ 18:16:09 Sessions 12 Manual Loads 0 Difficulty Rogue Special Mode None Game No. 97 Rogue 90 Adventurer 1 Explorer 6 Win Type - Total 41 Types 13/3/14/1/1/1/6/1/1 Lore% 87 Gallery% 91 Achievement% 84 Wizard Run 0 Options --------- Layout 0 ASCII 0 Keyboard 0 Movement Mouse Keybinds 0 Fullscreen 1 Font 24/Smallcaps Map View 76x50 Zoom Use 0% Tactical HUD 1 Map Filters NONE Filters NONE Steam 1 RUN: 99a1a005-2345-4886-af1f-8edd489817c2